Cogmind - Beta 16 --- EXPLORER MODE // 2026.01.27 @ 10:12:53 Player: viper Result: Destroyed by 2T-CIP(R) with Subdweller Machine Gun Performance ------------- Evolutions (0) 0 Regions Visited (2) 400 Robots Destroyed (29) 145 Value Destroyed (803) 803 Prototype IDs (4) 80 Alien Tech Used (0) 0 Bonus (0) 0 TOTAL SCORE: 1428 Bonus ------- None Cogmind --------- Core Integrity 0/250 Matter 172/300 Energy 181/250 System Corruption 0% Temperature Cool (0) Movement Walking (400) Ox4 Location -10/Subcaves Parts ------- > --- POWER (1) -------- Ion Engine > --- PROPULSION (2) --- Aluminum Leg > --- UTILITY (3) ------ High-capacity Storage Unit Terrain Scanner > --- WEAPON (2) ------- Light Cannon Mini Grenade Launcher > --- INVENTORY (20) --- Subdweller Power Source Improved Heat Sink Large Matter Pod (150) Structural Scanner Subdweller Optics Propulsion Shielding Weapon Shielding Autogun Battle Rifle Peak State ------------ > --- POWER ------------ Light Nuclear Core > --- PROPULSION ------- Aluminum Leg Aluminum Leg > --- UTILITY ---------- High-capacity Storage Unit Sensor Array Targeting Computer > --- WEAPON ----------- Autogun Autogun > --- INVENTORY -------- Ion Engine Aluminum Leg Aluminum Leg Improved Heat Sink Large Matter Pod Structural Scanner Terrain Scanner Propulsion Shielding Weapon Shielding Light Cannon [Rating: 13] Favorites ----------- Power Light Nuclear Core Engine Ion Engine Power Core Light Nuclear Core Propulsion Aluminum Leg Leg Aluminum Leg Utility Targeting Computer Device Sensor Array Storage High-capacity Storage Unit Processor Targeting Computer Weapon Autogun Energy Gun Medium Laser Ballistic Gun Autogun Ballistic Cannon Light Cannon Launcher Mini Grenade Launcher Build | -11 -10 -10 ------- Run | Yrd Mat Sub Slots Evolved 1 | . 1 . Power . | . . . Propulsion . | . . . Utility 1 | . 1 . Weapon . | . . . Parts Attached 19 | 8 9 2 Power 3 | 2 1 . Engine 2 | 2 . . Core 1 | . 1 . Reactor . | . . . Propulsion 4 | 2 2 . Treads . | . . . Leg 4 | 2 2 . Wheel . | . . . Hover . | . . . Flight . | . . . Utility 5 | 2 2 1 Device 2 | . 1 1 Storage 2 | 1 1 . Processor 1 | 1 . . Hackware . | . . . Protection . | . . . Artifact . | . . . Weapon 7 | 2 4 1 Energy Gun 1 | 1 . . Energy Cannon . | . . . Ballistic Gun 4 | 1 2 1 Ballistic Cannon 1 | . 1 . Launcher 1 | . 1 . Special Weapon . | . . . Impact Weapon . | . . . Slashing Weapon . | . . . Piercing Weapon . | . . . Special Melee Weapon . | . . . Unidentified Prototypes . | . . . Parts Lost 6 | . . 6 Power 1 | . . 1 Propulsion 2 | . . 2 Utility 2 | . . 2 Weapon 1 | . . 1 Highest Loss Streak 5 | . . 5 To Critical Strikes . | . . . Average Backups 9 | 2 8 12 Power 1 | . 1 1 Propulsion 1 | . 1 . Utility 5 | 1 4 6 Weapon 1 | . 1 2 Tool/Special . | . . . Unused Backups 9 | . 2 7 Power 1 | . . 1 Propulsion . | . . . Utility 7 | . 1 6 Weapon 1 | . 1 . Tool/Special . | . . . Average Slot Usage (%) 99 | . 98 99 Engine 2 | . 4 . Core 9 | . 7 11 Leg 24 | . 24 24 Device 11 | . 11 11 Storage 12 | . 12 12 Processor 11 | . 12 11 Energy Gun 1 | . 4 . Ballistic Gun 17 | . 11 23 Ballistic Cannon 3 | . 7 . Peak Build Rating 13 | 7 13 13 Average Rating 11 | 5 9 12 On Entrance 6 | . 7 13 Avg Prop Armor Cover (%) . | . . . Naked Turns . | . . . Heaviest Build 52 | 18 52 52 Greatest Support 20 | 20 20 20 Greatest Overweight (x) 4 | 4 2 2 Average Overweight (x) 1 | . . 2 Largest Inventory Capacity 20 | 10 20 20 Average Capacity 16 | 9 13 20 Most Carried 13 | 5 10 13 Average Carried 9 | 2 8 12 Final Capacity 20 | 10 20 20 Final Carried 10 | 5 10 9 Class Distribution -------------------- 100% | Hacker-Mutant Dominant Class ---------------- Hacker-Mutant | -10/Materials Hacker-Mutant | -10/Subcaves Resources | -11 -10 -10 ----------- Run | Yrd Mat Sub Matter Collected 1041 | 194 552 295 Remotely . | . . . Salvage Created 1138 | . 811 327 Parts 58 | . 40 18 Haulers Intercepted 2 | . 2 . Recyclers Shooed 1 | . 1 . Parts Field Recycled . | . . . Retrieved Matter . | . . . Parts Self-Destructed . | . . . Prevented . | . . . Parts Restored . | . . . Kills | -11 -10 -10 ------- Run | Yrd Mat Sub Combat Hostiles Destroyed 22 | . 15 7 Guns 13 | . 6 7 Cannons 9 | . 9 . Classes Destroyed 7 | . 6 1 Worker 2 | . 2 . Hauler 2 | . 2 . Recycler 2 | . 2 . Watcher 1 | . 1 . Swarmer 2 | . 2 . Grunt 15 | . 13 2 Subdweller 5 | . . 5 Best Kill Streak 5 | . 5 2 Combat Bots Only 2 | . 2 2 Max Kills in Single Turn 1 | . 1 1 Gunslinging . | . . . Exploded . | . . . Melee . | . . . Uniques/NPCs Destroyed . | . . . Combat | -11 -10 -10 -------- Run | Yrd Mat Sub Hostile Shots Fired 118 | . 53 65 Missed 29 | . 17 12 Hits 89 | . 36 53 Projectile 89 | . 36 53 Damage Taken 1112 | . 250 862 Core 261 | . 36 225 Absorbed by Shields . | . . . Ignored by Resistances 656 | . 164 492 Regen/Repaired (Parts) 88 | . 88 . Core Remaining (%) 100 | 100 . . Volleys Fired 105 | . 60 45 Largest 2 | . 2 2 Hottest 70 | . 70 60 Shots Fired 194 | . 117 77 Gun 148 | . 82 66 Cannon 39 | . 33 6 Launcher 7 | . 2 5 Special . | . . . Kinetic 163 | . 91 72 Thermal 24 | . 24 . Explosive 7 | . 2 5 Electromagnetic . | . . . Robot Hit Streak 64 | . 64 38 Robot Miss Streak 1 | . 1 1 Penetration Max . | . . . Secondary Targets 3 | . 2 1 Max Gunslinging Chain 1 | . 1 1 Shots Hit Robots 161 | . 97 64 Core Hits 57 | . 41 16 Critical Kills . | . . . Critical Parts Destroyed . | . . . Critical Strikes 3 | . 3 . Burn 3 | . 3 . Melee Attacks . | . . . Impact . | . . . Slashing . | . . . Piercing . | . . . Sneak Attacks . | . . . Combat Hostiles . | . . . Follow-up Attacks . | . . . Damage Inflicted 2072 | . 1144 928 Guns 1390 | . 640 750 Cannons 548 | . 496 52 Explosions 126 | . . 126 Melee . | . . . Ramming 8 | . 8 . Kinetic 1698 | . 896 802 Thermal 240 | . 240 . Explosive 126 | . . 126 Electromagnetic . | . . . Impact . | . . . Slashing . | . . . Piercing . | . . . Highest Corruption . | . . . Average Corruption . | . . . Corruption Purged . | . . . Corruption Blocked . | . . . Overload Shots . | . . . Overflow Damage . | . . . Projectiles . | . . . Explosions . | . . . Melee . | . . . Knockbacks 6 | . 5 1 Impact . | . . . Kinetic 6 | . 5 1 Secondary . | . . . Self-Inflicted Damage 137 | . 18 119 Shots 6 | . 1 5 Rammed . | . . . Targets Rammed 2 | . 2 . Kicked 2 | . 2 . Crushed . | . . . Highest Temperature 170 | . 170 . Average Temperature 46 | . 46 . Received Heat Transfer 321 | . 186 135 Siege Activations . | . . . Martial Activations . | . . . Shielding Activations . | . . . Robots Disrupted . | . . . Combat Hostiles . | . . . Robots Corrupted . | . . . Combat Hostiles . | . . . Parts Fried . | . . . Impact Corruptions . | . . . Robots Melted . | . . . Combat Hostiles . | . . . Parts Melted 1 | . 1 . Heat Transferred 925 | . 925 . Parts Sabotaged . | . . . Parts Stolen . | . . . Parts Stripped . | . . . Power Chain Reactions . | . . . Alert | -11 -10 -10 ------- Run | Yrd Mat Sub Maximum Alert Level . | . . . Low Security (%) 100 | 100 100 . Level 1 . | . . . Level 2 . | . . . Level 3 . | . . . Level 4 . | . . . Level 5 . | . . . High Security . | . . . Max Security . | . . . Peak Influence 78 | . 78 . Initial . | . . . Average 13 | . 14 . Influence Increases 516 | . 466 50 Destroy 0b10 Robot/C 340 | . 300 40 Destroy 0b10 Robot/NC 35 | . 35 . Destroy Leader 86 | . 76 10 Successful Hack 33 | . 33 . Destroy Structure 7 | . 7 . Lose Combat Pursuer 15 | . 15 . Influence Decreases 516 | . 466 50 Time Decay 516 | . 466 50 Squads Dispatched 4 | . 4 . Investigation 4 | . 4 . Extermination . | . . . Reinforcement . | . . . Assault . | . . . Garrison . | . . . Intercept . | . . . Searches Triggered . | . . . Construction Impeded . | . . . Haulers Reinforced . | . . . Active Scanning Responses . | . . . Cargo Convoy Interrupts . | . . . Stealth | -11 -10 -10 --------- Run | Yrd Mat Sub Distress Signals 1 | . 1 . Communications Jammed . | . . . Distress Signals . | . . . Times Spotted 31 | . 21 10 Peak Tracking Total 4 | . 4 3 Tactical Retreats 1 | . 1 . Traps | -11 -10 -10 ------- Run | Yrd Mat Sub Traps Triggered 2 | . 1 1 Indirectly . | . . . Trap Hack Attempts . | . . . Triggered . | . . . Disarmed . | . . . Reprogrammed . | . . . Reused . | . . . Traps Extracted . | . . . Installed . | . . . Triggered . | . . . Machines | -11 -10 -10 ---------- Run | Yrd Mat Sub Machines Disabled . | . . . Max in Single Turn . | . . . Machines Repaired . | . . . Machines Dismantled . | . . . Machines Sabotaged . | . . . Overloaded Fab Kills . | . . . Hacking | -11 -10 -10 --------- Run | Yrd Mat Sub Machines Accessed 9 | . 9 . Terminals 8 | . 8 . Fabricators . | . . . Repair Stations 1 | . 1 . Recycling Units . | . . . Scanalyzers . | . . . Garrison Access . | . . . Total Hacks 48 | . 48 . Successful 40 | . 40 . Failed 8 | . 8 . Catastrophic . | . . . Database Lockouts . | . . . Manual . | . . . Terminals 40 | . 40 . Fabricators . | . . . Repair Stations 8 | . 8 . Recycling Units . | . . . Scanalyzers . | . . . Garrison Access . | . . . Terminal Hacks 32 | . 32 . Record 13 | . 13 . Robot Analysis 3 | . 3 . Prototype ID Bank 2 | . 2 . Level Access Points 1 | . 1 . Emergency Access Points 3 | . 3 . Repair Station Index 1 | . 1 . Locate Traps 3 | . 3 . Dispatch Records 1 | . 1 . Investigation Status 1 | . 1 . Reinforcement Status 1 | . 1 . Recall Reinforcements 1 | . 1 . Hauler Manifests 1 | . 1 . Registered Components 1 | . 1 . Fabricator Hacks . | . . . Repair Station Hacks 8 | . 8 . Scan Component 4 | . 4 . Repair 4 | . 4 . Recycling Unit Hacks . | . . . Scanalyzer . | . . . Garrison Access Hacks . | . . . Unauthorized Hacks . | . . . Terminals . | . . . Fabricators . | . . . Repair Stations . | . . . Recycling Units . | . . . Scanalyzers . | . . . Garrison Access . | . . . Data Cores Recovered . | . . . Used . | . . . Hacking Detections 9 | . 9 . Full Trace Events 8 | . 8 . Feedback Events . | . . . Feedback Blocked . | . . . Robot Schematics Acquired . | . . . Robots Built . | . . . Authchips . | . . . Time . | . . . Total Robot Build Rating . | . . . Part Schematics Acquired . | . . . Parts Built . | . . . Authchips . | . . . Time . | . . . Total Part Build Rating . | . . . Part Studies Acquired . | . . . Parts Repaired 4 | . 4 . Time 104 | . 104 . Parts Recycled . | . . . Recycled Matter . | . . . Retrieved Matter . | . . . Retrieved Components . | . . . Parts Scanalyzed . | . . . Part Schematics Acquired . | . . . Parts Damaged . | . . . Bothacking | -11 -10 -10 ------------ Run | Yrd Mat Sub Used RIF Installer . | . . . Robots Hacked . | . . . Non-combat . | . . . Combat . | . . . Robot Hacks Applied . | . . . Relay Couplers Released . | . . . Fabnet Peak Effective % . | . . . Robots Rewired . | . . . Allies Hacked . | . . . Hacks Repelled . | . . . Allies | -11 -10 -10 -------- Run | Yrd Mat Sub Total Allies . | . . . Largest Group . | . . . Highest-Rated Group . | . . . Highest-Rated Ally . | . . . Total Orders . | . . . Ally Attacks . | . . . Total Damage . | . . . Kills . | . . . Allies Corrupted . | . . . Allies Melted . | . . . Intel | -11 -10 -10 ------- Run | Yrd Mat Sub Active Infowar (turns) 2697 | . 1285 1412 Sensors 2136 | . 1285 851 Terrain 561 | . . 561 Robot Analysis Total 3 | . 3 . Derelict Logs Recovered . | . . . Drone Launches . | . . . Drone Recoveries . | . . . Exploration | -11 -10 -10 ------------- Run | Yrd Mat Sub Turns Passed 2812 | 84 1313 1415 Spaces Moved 1189 | 55 656 478 Core 13 | 13 . . Treads . | . . . Legs 1176 | 42 656 478 Wheels . | . . . Hover . | . . . Flight . | . . . Fastest Speed 50 | 50 120 260 Average Speed 192 | 123 149 260 Slowest Speed 260 | 250 260 260 Overloaded Moves . | . . . Propulsion Burnouts . | . . . Robots Hopped . | . . . Potential Cave-ins 2 | . 2 . Cave-ins Triggered . | . . . Exploration Rate (%) 41 | 4 86 35 Regions Visited 2 Branch Regions 1 Pre-discovered Areas . | . . . Known Exits Taken 2 | 1 1 . Unknown Exits Taken . | . . . Scrap Searched 3 | . . 3 Spaces Dug 40 | . 21 19 Terrain Destroyed 72 | . 21 51 Melee . | . . . Projectile . | . . . AOE 72 | . 21 51 Terrain Rammed . | . . . Walls Destroyed . | . . . Machines Disabled . | . . . Actions | -11 -10 -10 --------- Run | Yrd Mat Sub Total 1528 | 67 879 582 Wait 179 | . 131 48 Move 1187 | 54 655 478 Hop . | . . . Pick Up 14 | 5 6 3 Fast Attach 17 | 7 10 . Attach 5 | . 1 4 Detach 2 | . 2 . Swap 10 | 1 5 4 Drop 7 | . 7 . Fire 105 | . 60 45 Melee . | . . . Ram . | . . . Kick 2 | . 2 . Crush . | . . . Escape Stasis . | . . . Rewire . | . . . Trap . | . . . Miscellaneous . | . . . Route ------- -11/Scrapyard -10/Materials (discovered 6 exits: *Mat x3 / *Min x2 / *Sub) -10/Subcaves (discovered 2 exits: *Mat x2) History --------- Turn | Location | Event 3 | -11/Scrapyard | Identified exit to Materials 3 | -11/Scrapyard | Discovered exit to Materials (range 15) 85 | -11/Scrapyard | Entered Materials 85 | -10/Materials | Evolved 1 slot: Utility x1 291 | -10/Materials | Identified exit to Mines 291 | -10/Materials | Discovered exit to Mines (range 15) 309 | -10/Materials | Build established: Hacker-Mutant 506 | -10/Materials | Identified exit to Materials 758 | -10/Materials | Repaired Aluminum Leg 786 | -10/Materials | Repaired Sensor Array 813 | -10/Materials | Repaired Lgt. Assault Rifle 841 | -10/Materials | Repaired Lgt. Cannon 977 | -10/Materials | Discovered exit to Mines (range 3) 1038 | -10/Materials | Identified exit to Subcaves 1038 | -10/Materials | Discovered exit to Subcaves (range 14) 1398 | -10/Materials | Entered Subcaves 1399 | -10/Subcaves | Approached by a straggling Scientist 1819 | -10/Subcaves | Identified exit to Materials 1819 | -10/Subcaves | Discovered exit to Materials (range 15) 2083 | -10/Subcaves | A swath of the cavern ceiling suddenly collapsed 2440 | -10/Subcaves | Shifting Twisted Machinery released Sub. Laser 2446 | -10/Subcaves | Shifting Twisted Machinery released Riot Gun 2533 | -10/Subcaves | A swath of the cavern ceiling suddenly collapsed 2758 | -10/Subcaves | Core integrity fell below 50% 2771 | -10/Subcaves | A Subdweller sparked back to life 2771 | -10/Subcaves | A Subdweller sparked back to life 2771 | -10/Subcaves | A Subdweller sparked back to life 2788 | -10/Subcaves | Core integrity fell below 20% 2810 | -10/Subcaves | Discovered exit to Materials (range 15) 2813 | -10/Subcaves | Destroyed by 2T-CIP(R) with Subdweller Machine Gun Last Messages --------------- 02647_ The unstable cave ceiling collapses. 02658_ Acquired 10 matter. 02667_ Subatomizers dissect the Heat Sink. 02730_ Subatomizers dissect the Aluminum Leg. 02760_ The unstable cave ceiling collapses. 02771_ Y9-9WN(R) creaks and sparks as it begins to move. 02771_ S3-EX2(R) creaks and sparks as it begins to move. 02771_ 2T-CIP(R) creaks and sparks as it begins to move. 02773_ Autogun destroyed. 02777_ Lgt. Nuclear Core destroyed. 02778_ Y9-9WN(R) destroyed. 02780_ Aluminum Leg destroyed. 02784_ S3-EX2(R) affixes Scrap Shield Fragment to Scrap Shield. 02801_ Targeting Computer destroyed. 02805_ 2T-CIP(R) knocked back. 02810_ EXIT=FOUND: MATERIALS Map ----- +----------------------------------------------------+ | ??????????????????????????????????????????? | | ??????????????????????????????????????????? | | ??????????????????????????????????????????? | | ??????????????????????????????????????????? | | ??????????????????????????????????????????? | | ??????????????????????????????????????????? | | ??????????????????????????????????????????? | | ??????????????????????????????????????????? | | ??????????????????????????????????????????? | | ??????????????????????????????????????????? | | ??????????????????????????????????????????? | | ??????????????????????